Workbook

Sheet 附件1
A1: 附件1
A2: 2022年耕地地力保护补贴面积核实农户登记表
A3: 村(盖章) 组
A4: 编号 | B4: 户主姓名 | C4: 2021年耕地地力保护补贴面积(亩) | D4: 2022年耕地地力保护补贴面积 | G4: 变更原因 | H4: 户主签名
D5: 合计 | E5: 已确权耕地面积(亩） | F5: 暂缓确权耕地面积（亩）
A24: 本页合计
B25: 村民小组长： | E25: 包组村干部： | G25: 年 月 日

Sheet 附件2
A1: 附件2：
A2: 2022年耕地地力保护补贴面积核实村委会汇总表
A3: 村（盖章） | I3: 单位：户、亩
A4: 村小组 名称 | B4: 户数 | C4: 2021年耕地地力保护补贴面积 | D4: 2022年耕地地力保护补贴面积 | J4: 主要变 更原因 | K4: 村小组长 签名
D5: 合计 | E5: 已确权 到户耕地面积 | F5: 机动地 面积 | G5: 自留地面积 | H5: 其他 | I5: 暂缓确权耕地面积
A16: 本村合计
A17: 填表人： 书记： 主任：

Sheet 附件3
A1: 附件3
A2: 2022年耕地地力保护补贴面积核实情况登记表
A3: 村 单位：亩
A4: 编号 | B4: 村小组名称 | C4: 农户姓名 | D4: 2022年耕地地力保护补贴面积 | G4: 是否正确、真实 | H4: 备注
D5: 合计 | E5: 已确权耕地面积(亩） | F5: 暂缓确权耕地面积（亩）
A20: 本页合计
A21: 填表人： | C21: 驻村干部： | E21: 挂村领导：

Sheet 附件4
A1: 附件4
A2: 2022年耕地地力保护补贴面积核实镇汇总表
A3: 小松 镇(盖章)
A4: 2022年 6 月 24 日 单位：个、户、亩
A5: 村委会名称 | B5: 村小组个数 | C5: 户数 | D5: 2021年耕地地力保护补贴面积 | E5: 2022年耕地地力保护补贴面积 | K5: 主要变更原因
E6: 合计 | F6: 已确权到户面积 | G6: 机动地面积 | H6: 自留地面积 | I6: 其他 | J6: 暂缓确权耕地面积
A7: 桐江村 | B7: 14 | C7: 326 | D7: 1427.57 | E7: =SUM(F7:J7) -> 1462.57 | F7: 1427.41 | G7: 35 | J7: 0.16
A8: 丹溪村 | B8: 26 | C8: 716 | D8: 4409.71 | E8: 4409.71 | F8: 4409.71
A9: 江口村 | B9: 18 | C9: 466 | D9: 2494.85 | E9: 2494.85 | F9: 2494.85
A10: 罗源村 | B10: 24 | C10: 698 | D10: 3128.4 | E10: 3051.3 | F10: 3051.3 | K10: 复耕、征地核减
A11: 胜和村 | B11: 8 | C11: 76 | D11: 223.58 | E11: 240.58 | F11: 240.58 | K11: 复耕
A12: 迳里村 | B12: 23 | C12: 425 | D12: 1570.12 | E12: 1628.44 | F12: 1628.44 | K12: 2022年复耕58.32亩
A13: 石田村 | B13: 19 | C13: 551 | D13: 1953.21 | E13: 1973.21 | F13: 1973.21 | G13: 20 | K13: 复耕
A14: 蜀口村 | B14: 26 | C14: 782 | D14: 4282.01 | E14: 4282.01 | F14: 4275.67 | J14: 6.34
A15: 小松村 | B15: 25 | C15: 834 | D15: 3145.78 | E15: 3023.38 | F15: 3023.38
A16: 新华村 | B16: 8 | C16: 142 | D16: 418.4 | E16: =SUM(F16:J16) -> 595.5 | F16: 580.5 | G16: 15 | K16: 复耕162.1亩
A17: 瑶上村 | B17: 13 | C17: 340 | D17: 1282.8 | E17: =SUM(F17:J17) -> 1407.9 | F17: 1315.9 | G17: 92 | K17: 已复垦
A18: 罗溪村 | B18: 23 | C18: 443 | D18: 1654.72 | E18: =SUM(F18:J18) -> 1979.72 | F18: 1654.72 | G18: 325
A19: 许坊村 | B19: 13 | C19: 416 | D19: 1733.064 | E19: 1733.06 | F19: 1733.06
A20: 耸岗村 | B20: 13 | C20: 352 | D20: 1698.38 | E20: 1710.83 | F20: 1710.83 | K20: 已复垦
A25: 本镇合计 | C25: =SUM(C7:C24) -> 6567 | D25: 29422.594 | E25: 29993.06 | F25: 29519.56 | G25: 487 | H25: 0 | I25: 0 | J25: 6.5
A26: 填表人： 分管领导： 乡（镇）长：

Sheet 附件5-农户
A1: 石城县财政惠农补贴（耕地地力保护补贴）社会保障“一卡通”发放清册
A2: 单位名称（公章）： 制表时间： 单位：元
A3: 序号 | B3: 行政区划名称 | C3: 村组 | D3: 账户人姓名 | E3: 补助金额 | F3: 补助面积 | G3: 备注
A4: 1 | B4: 小松镇罗溪村 | C4: 罗溪村坳里小组 | D4: 温大华 | E4: =F4*112 -> 303.52 | F4: 2.71
A5: 2 | B5: 小松镇罗溪村 | C5: 罗溪村坳里小组 | D5: 温光林 | E5: 546.56 | F5: 4.88
A6: 3 | B6: 小松镇罗溪村 | C6: 罗溪村坳里小组 | D6: 温先焰 | E6: 303.52 | F6: 2.71
A7: 4 | B7: 小松镇罗溪村 | C7: 罗溪村坳里小组 | D7: 温广东 | E7: 404.32 | F7: 3.61
A8: 5 | B8: 小松镇罗溪村 | C8: 罗溪村坳里小组 | D8: 温大有 | E8: 708.96 | F8: 6.33
A9: 6 | B9: 小松镇罗溪村 | C9: 罗溪村坳里小组 | D9: 温长生 | E9: 404.32 | F9: 3.61
A10: 7 | B10: 小松镇罗溪村 | C10: 罗溪村坳里小组 | D10: 温光遥 | E10: 607.04 | F10: 5.42
A11: 8 | B11: 小松镇罗溪村 | C11: 罗溪村坳里小组 | D11: 温光雄 | E11: 404.32 | F11: 3.61
A12: 9 | B12: 小松镇罗溪村 | C12: 罗溪村坳里小组 | D12: 温学生 | E12: =F12*112 -> 404.32 | F12: 3.61
A13: 10 | B13: 小松镇罗溪村 | C13: 罗溪村坳里小组 | D13: 温光玲 | E13: 607.04 | F13: 5.42
A14: 11 | B14: 小松镇罗溪村 | C14: 罗溪村坳里小组 | D14: 温马齐 | E14: 1013.60 | F14: 9.05
A15: 12 | B15: 小松镇罗溪村 | C15: 罗溪村坳里小组 | D15: 温大荣 | E15: 506.24 | F15: 4.52
A16: 13 | B16: 小松镇罗溪村 | C16: 罗溪村坳里小组 | D16: 温光新 | E16: 506.24 | F16: 4.52
A17: 14 | B17: 小松镇罗溪村 | C17: 罗溪村坳里小组 | D17: 温大建 | E17: 506.24 | F17: 4.52
A18: 15 | B18: 小松镇罗溪村 | C18: 罗溪村坳里小组 | D18: 李荣华 | E18: 506.24 | F18: 4.52
A19: 16 | B19: 小松镇罗溪村 | C19: 罗溪村坳里小组 | D19: 温小波 | E19: 506.24 | F19: 4.52
A20: 17 | B20: 小松镇罗溪村 | C20: 罗溪村坳里小组 | D20: 温光泽 | E20: 506.24 | F20: 4.52
A21: 18 | B21: 小松镇罗溪村 | C21: 罗溪村坳里小组 | D21: 温小红 | E21: 509.60 | F21: 4.55
A22: 19 | B22: 小松镇罗溪村 | C22: 罗溪村坳里小组 | D22: 温光南 | E22: 911.68 | F22: 8.14
A23: 20 | B23: 小松镇罗溪村 | C23: 罗溪村坳里小组 | D23: 温大伟 | E23: 404.32 | F23: 3.61
A24: 21 | B24: 小松镇罗溪村 | C24: 罗溪村坳里小组 | D24: 李贤斌 | E24: 800.80 | F24: 7.15
A25: 22 | B25: 小松镇罗溪村 | C25: 罗溪村坳里小组 | D25: 温禅生 | E25: 100.80 | F25: 0.90
A26: 23 | B26: 小松镇罗溪村 | C26: 罗溪村大屋下小组 | D26: 温荣鸣 | E26: 235.20 | F26: 2.10
A27: 24 | B27: 小松镇罗溪村 | C27: 罗溪村大屋下小组 | D27: 温荣生 | E27: 358.40 | F27: 3.20
A28: 25 | B28: 小松镇罗溪村 | C28: 罗溪村大屋下小组 | D28: 温福生 | E28: 463.68 | F28: 4.14
A29: 26 | B29: 小松镇罗溪村 | C29: 罗溪村大屋下小组 | D29: 温长生 | E29: 364.00 | F29: 3.25
A30: 27 | B30: 小松镇罗溪村 | C30: 罗溪村大屋下小组 | D30: 温先亮 | E30: 246.40 | F30: 2.20
A31: 28 | B31: 小松镇罗溪村 | C31: 罗溪村大屋下小组 | D31: 温德源 | E31: 752.64 | F31: 6.72
A32: 29 | B32: 小松镇罗溪村 | C32: 罗溪村大屋下小组 | D32: 温南方 | E32: 685.44 | F32: 6.12
A33: 30 | B33: 小松镇罗溪村 | C33: 罗溪村大屋下小组 | D33: 温先富 | E33: 784.00 | F33: 7.00
A34: 31 | B34: 小松镇罗溪村 | C34: 罗溪村大屋下小组 | D34: 赵女秀 | E34: 511.28 | F34: 4.57
A35: 32 | B35: 小松镇罗溪村 | C35: 罗溪村大屋下小组 | D35: 李晓华 | E35: 511.28 | F35: 4.57
A36: 33 | B36: 小松镇罗溪村 | C36: 罗溪村大屋下小组 | D36: 钟罗英 | E36: 235.20 | F36: 2.10
A37: 34 | B37: 小松镇罗溪村 | C37: 罗溪村大屋下小组 | D37: 温光斗 | E37: 907.20 | F37: 8.10
A38: 35 | B38: 小松镇罗溪村 | C38: 罗溪村大屋下小组 | D38: 温先林 | E38: 369.60 | F38: 3.30
A39: 36 | B39: 小松镇罗溪村 | C39: 罗溪村大屋下小组 | D39: 温光伟 | E39: 353.92 | F39: 3.16
A40: 37 | B40: 小松镇罗溪村 | C40: 罗溪村大屋下小组 | D40: 温普盛 | E40: 1027.04 | F40: 9.17
A41: 38 | B41: 小松镇罗溪村 | C41: 罗溪村大屋下小组 | D41: 陈义秀 | E41: 1120.00 | F41: 10.00
A42: 39 | B42: 小松镇罗溪村 | C42: 罗溪村大屋下小组 | D42: 温良生 | E42: 235.20 | F42: 2.10
A43: 40 | B43: 小松镇罗溪村 | C43: 罗溪村大屋下小组 | D43: 温光贤 | E43: 459.20 | F43: 4.10
A44: 41 | B44: 小松镇罗溪村 | C44: 罗溪村大屋下小组 | D44: 黄林秀 | E44: 459.20 | F44: 4.10
A45: 42 | B45: 小松镇罗溪村 | C45: 罗溪村大屋下小组 | D45: 温先得 | E45: 347.20 | F45: 3.10
A46: 43 | B46: 小松镇罗溪村 | C46: 罗溪村大屋下小组 | D46: 温何生 | E46: 571.20 | F46: 5.10
A47: 44 | B47: 小松镇罗溪村 | C47: 罗溪村大屋下小组 | D47: 温德华 | E47: 134.40 | F47: 1.20
A48: 45 | B48: 小松镇罗溪村 | C48: 罗溪村圩家屋小组 | D48: 温庆生 | E48: 1071.84 | F48: 9.57
A49: 46 | B49: 小松镇罗溪村 | C49: 罗溪村圩家屋小组 | D49: 刘继秀 | E49: 244.16 | F49: 2.18
A50: 47 | B50: 小松镇罗溪村 | C50: 罗溪村圩家屋小组 | D50: 温华宾 | E50: 389.76 | F50: 3.48
A51: 48 | B51: 小松镇罗溪村 | C51: 罗溪村圩家屋小组 | D51: 温光楠 | E51: 244.16 | F51: 2.18
A52: 49 | B52: 小松镇罗溪村 | C52: 罗溪村圩家屋小组 | D52: 温福生 | E52: 340.48 | F52: 3.04
A53: 50 | B53: 小松镇罗溪村 | C53: 罗溪村圩家屋小组 | D53: 温大盛 | E53: 258.72 | F53: 2.31
A54: 51 | B54: 小松镇罗溪村 | C54: 罗溪村圩家屋小组 | D54: 温大驰 | E54: 257.60 | F54: 2.30
A55: 52 | B55: 小松镇罗溪村 | C55: 罗溪村圩家屋小组 | D55: 温光海 | E55: 340.48 | F55: 3.04
A56: 53 | B56: 小松镇罗溪村 | C56: 罗溪村圩家屋小组 | D56: 温大胜 | E56: 414.40 | F56: 3.70
A57: 54 | B57: 小松镇罗溪村 | C57: 罗溪村圩家屋小组 | D57: 温光胜 | E57: 389.76 | F57: 3.48
A58: 55 | B58: 小松镇罗溪村 | C58: 罗溪村圩家屋小组 | D58: 温细广 | E58: 936.32 | F58: 8.36
A59: 56 | B59: 小松镇罗溪村 | C59: 罗溪村圩家屋小组 | D59: 温云生 | E59: 292.32 | F59: 2.61
A60: 57 | B60: 小松镇罗溪村 | C60: 罗溪村圩家屋小组 | D60: 温光斌 | E60: 418.88 | F60: 3.74
A61: 58 | B61: 小松镇罗溪村 | C61: 罗溪村圩家屋小组 | D61: 温海仔 | E61: 194.88 | F61: 1.74
A62: 59 | B62: 小松镇罗溪村 | C62: 罗溪村圩家屋小组 | D62: 温角院 | E62: 341.60 | F62: 3.05
A63: 60 | B63: 小松镇罗溪村 | C63: 罗溪村圩家屋小组 | D63: 温光棣 | E63: 244.16 | F63: 2.18
A64: 61 | B64: 小松镇罗溪村 | C64: 罗溪村圩家屋小组 | D64: 温小春 | E64: 97.44 | F64: 0.87
A65: 62 | B65: 小松镇罗溪村 | C65: 罗溪村圩家屋小组 | D65: 温瑞仔 | E65: 268.80 | F65: 2.40
A66: 63 | B66: 小松镇罗溪村 | C66: 罗溪村圩家屋小组 | D66: 温小平 | E66: 224.00 | F66: 2.00
A67: 64 | B67: 小松镇罗溪村 | C67: 罗溪村圩家屋小组 | D67: 温细角 | E67: 235.20 | F67: 2.10
A68: 65 | B68: 小松镇罗溪村 | C68: 罗溪村圩家屋小组 | D68: 温东南 | E68: 235.20 | F68: 2.10
A69: 66 | B69: 小松镇罗溪村 | C69: 罗溪村圩家屋小组 | D69: 温细柏 | E69: 235.20 | F69: 2.10
A70: 67 | B70: 小松镇罗溪村 | C70: 罗溪村王柏郎小组 | D70: 温大林 | E70: 246.40 | F70: 2.20
A71: 68 | B71: 小松镇罗溪村 | C71: 罗溪村王柏郎小组 | D71: 温红米 | E71: 280.00 | F71: 2.50
A72: 69 | B72: 小松镇罗溪村 | C72: 罗溪村王柏郎小组 | D72: 温有生 | E72: 369.60 | F72: 3.30
A73: 70 | B73: 小松镇罗溪村 | C73: 罗溪村王柏郎小组 | D73: 温长生 | E73: 604.80 | F73: 5.40
A74: 71 | B74: 小松镇罗溪村 | C74: 罗溪村王柏郎小组 | D74: 温小明 | E74: 201.60 | F74: 1.80
A75: 72 | B75: 小松镇罗溪村 | C75: 罗溪村王柏郎小组 | D75: 温大柱 | E75: 448.00 | F75: 4.00
A76: 73 | B76: 小松镇罗溪村 | C76: 罗溪村王柏郎小组 | D76: 温荣生 | E76: =F76*112 -> 358.40 | F76: 3.20
A77: 74 | B77: 小松镇罗溪村 | C77: 罗溪村王柏郎小组 | D77: 温星辉 | E77: 224.00 | F77: 2.00
A78: 75 | B78: 小松镇罗溪村 | C78: 罗溪村王柏郎小组 | D78: 温大训 | E78: 313.60 | F78: 2.80
A79: 76 | B79: 小松镇罗溪村 | C79: 罗溪村王柏郎小组 | D79: 温桥生 | E79: 448.00 | F79: 4.00
A80: 77 | B80: 小松镇罗溪村 | C80: 罗溪村王柏郎小组 | D80: 温方生 | E80: 448.00 | F80: 4.00
A81: 78 | B81: 小松镇罗溪村 | C81: 罗溪村王柏郎小组 | D81: 温大相 | E81: 392.00 | F81: 3.50
A82: 79 | B82: 小松镇罗溪村 | C82: 罗溪村石端上小组 | D82: 温光远 | E82: 694.40 | F82: 6.20
A83: 80 | B83: 小松镇罗溪村 | C83: 罗溪村石端上小组 | D83: 肖利红 | E83: 560.00 | F83: 5.00
A84: 81 | B84: 小松镇罗溪村 | C84: 罗溪村石端上小组 | D84: 温有生 | E84: 560.00 | F84: 5.00
A85: 82 | B85: 小松镇罗溪村 | C85: 罗溪村石端上小组 | D85: 温小玲 | E85: 358.40 | F85: 3.20
A86: 83 | B86: 小松镇罗溪村 | C86: 罗溪村石端上小组 | D86: 肖开秀 | E86: 358.40 | F86: 3.20
A87: 84 | B87: 小松镇罗溪村 | C87: 罗溪村石端上小组 | D87: 温福昌 | E87: 694.40 | F87: 6.20
A88: 85 | B88: 小松镇罗溪村 | C88: 罗溪村石端上小组 | D88: 温光珍 | E88: 840.00 | F88: 7.50
A89: 86 | B89: 小松镇罗溪村 | C89: 罗溪村石端上小组 | D89: 温京州 | E89: 392.00 | F89: 3.50
A90: 87 | B90: 小松镇罗溪村 | C90: 罗溪村石端上小组 | D90: 温光英 | E90: 257.60 | F90: 2.30
A91: 88 | B91: 小松镇罗溪村 | C91: 罗溪村石端上小组 | D91: 温大亮 | E91: 873.60 | F91: 7.80
A92: 89 | B92: 小松镇罗溪村 | C92: 罗溪村石端上小组 | D92: 温光红 | E92: 694.40 | F92: 6.20
A93: 90 | B93: 小松镇罗溪村 | C93: 罗溪村石端上小组 | D93: 廖荣秀 | E93: 560.00 | F93: 5.00
A94: 91 | B94: 小松镇罗溪村 | C94: 罗溪村石端上小组 | D94: 温光文 | E94: 694.40 | F94: 6.20
A95: 92 | B95: 小松镇罗溪村 | C95: 罗溪村石端上小组 | D95: 温林生 | E95: 392.00 | F95: 3.50
A96: 93 | B96: 小松镇罗溪村 | C96: 罗溪村石端上小组 | D96: 温传经 | E96: 694.40 | F96: 6.20
A97: 94 | B97: 小松镇罗溪村 | C97: 罗溪村石端上小组 | D97: 温大林 | E97: 448.00 | F97: 4.00
A98: 95 | B98: 小松镇罗溪村 | C98: 罗溪村石端上小组 | D98: 胡带秀 | E98: 392.00 | F98: 3.50
A99: 96 | B99: 小松镇罗溪村 | C99: 罗溪村新隔口小组 | D99: 温良生 | E99: 1120.00 | F99: 10.00
A100: 97 | B100: 小松镇罗溪村 | C100: 罗溪村新隔口小组 | D100: 温先盛 | E100: 280.00 | F100: 2.50
A101: 98 | B101: 小松镇罗溪村 | C101: 罗溪村新隔口小组 | D101: 温云飞 | E101: 582.40 | F101: 5.20
A102: 99 | B102: 小松镇罗溪村 | C102: 罗溪村新隔口小组 | D102: 温光与 | E102: 616.00 | F102: 5.50
A103: 100 | B103: 小松镇罗溪村 | C103: 罗溪村新隔口小组 | D103: 温光兴 | E103: 582.40 | F103: 5.20
A104: 101 | B104: 小松镇罗溪村 | C104: 罗溪村新隔口小组 | D104: 温团生 | E104: 425.60 | F104: 3.80
A105: 102 | B105: 小松镇罗溪村 | C105: 罗溪村新隔口小组 | D105: 温光盛 | E105: 358.40 | F105: 3.20
A106: 103 | B106: 小松镇罗溪村 | C106: 罗溪村新隔口小组 | D106: 温洪波 | E106: 582.40 | F106: 5.20
A107: 104 | B107: 小松镇罗溪村 | C107: 罗溪村新隔口小组 | D107: 温光全 | E107: 358.40 | F107: 3.20
A108: 105 | B108: 小松镇罗溪村 | C108: 罗溪村新隔口小组 | D108: 陈小莲 | E108: 358.40 | F108: 3.20
A109: 106 | B109: 小松镇罗溪村 | C109: 罗溪村新隔口小组 | D109: 温连生 | E109: 582.40 | F109: 5.20
A110: 107 | B110: 小松镇罗溪村 | C110: 罗溪村新隔口小组 | D110: 温先珍 | E110: 280.00 | F110: 2.50
A111: 108 | B111: 小松镇罗溪村 | C111: 罗溪村新隔口小组 | D111: 李罗秀 | E111: 470.40 | F111: 4.20
A112: 109 | B112: 小松镇罗溪村 | C112: 罗溪村新隔口小组 | D112: 温郎子 | E112: 896.00 | F112: 8.00
A113: 110 | B113: 小松镇罗溪村 | C113: 罗溪村新隔口小组 | D113: 温先洪 | E113: 358.40 | F113: 3.20
A114: 111 | B114: 小松镇罗溪村 | C114: 罗溪村新隔口小组 | D114: 温抚州 | E114: 425.60 | F114: 3.80
A115: 112 | B115: 小松镇罗溪村 | C115: 罗溪村新隔口小组 | D115: 温先发 | E115: 784.00 | F115: 7.00
A116: 113 | B116: 小松镇罗溪村 | C116: 罗溪村新隔口小组 | D116: 温新和 | E116: 280.00 | F116: 2.50
A117: 114 | B117: 小松镇罗溪村 | C117: 罗溪村龙潭下小组 | D117: 李心甫 | E117: 319.20 | F117: 2.85
A118: 115 | B118: 小松镇罗溪村 | C118: 罗溪村龙潭下小组 | D118: 温光柏 | E118: 510.72 | F118: 4.56
A119: 116 | B119: 小松镇罗溪村 | C119: 罗溪村龙潭下小组 | D119: 温光旺 | E119: 191.52 | F119: 1.71
A120: 117 | B120: 小松镇罗溪村 | C120: 罗溪村龙潭下小组 | D120: 温大东 | E120: 383.04 | F120: 3.42
A121: 118 | B121: 小松镇罗溪村 | C121: 罗溪村龙潭下小组 | D121: 温水生 | E121: 255.36 | F121: 2.28
A122: 119 | B122: 小松镇罗溪村 | C122: 罗溪村龙潭下小组 | D122: 温吉生 | E122: 191.52 | F122: 1.71
A123: 120 | B123: 小松镇罗溪村 | C123: 罗溪村龙潭下小组 | D123: 温大湘 | E123: 319.20 | F123: 2.85
A124: 121 | B124: 小松镇罗溪村 | C124: 罗溪村龙潭下小组 | D124: 温阳保 | E124: 255.36 | F124: 2.28
A125: 122 | B125: 小松镇罗溪村 | C125: 罗溪村龙潭下小组 | D125: 李贤英 | E125: 319.20 | F125: 2.85
A126: 123 | B126: 小松镇罗溪村 | C126: 罗溪村龙潭下小组 | D126: 温光瑶 | E126: 255.36 | F126: 2.28
A127: 124 | B127: 小松镇罗溪村 | C127: 罗溪村龙潭下小组 | D127: 温光吉 | E127: 446.88 | F127: 3.99
A128: 125 | B128: 小松镇罗溪村 | C128: 罗溪村龙潭下小组 | D128: 温振江 | E128: 319.20 | F128: 2.85
A129: 126 | B129: 小松镇罗溪村 | C129: 罗溪村龙潭下小组 | D129: 温会同 | E129: 255.36 | F129: 2.28
A130: 127 | B130: 小松镇罗溪村 | C130: 罗溪村龙潭下小组 | D130: 温兰生 | E130: 112.00 | F130: 1.00
A131: 128 | B131: 小松镇罗溪村 | C131: 罗溪村龙潭下小组 | D131: 温细院 | E131: 319.20 | F131: 2.85
A132: 129 | B132: 小松镇罗溪村 | C132: 罗溪村龙潭下小组 | D132: 温女生 | E132: 127.68 | F132: 1.14
A133: 130 | B133: 小松镇罗溪村 | C133: 罗溪村龙潭下小组 | D133: 温大邦 | E133: 383.04 | F133: 3.42
A134: 131 | B134: 小松镇罗溪村 | C134: 罗溪村龙潭下小组 | D134: 温桃芳 | E134: 127.68 | F134: 1.14
A135: 132 | B135: 小松镇罗溪村 | C135: 罗溪村龙潭下小组 | D135: 温兰荣 | E135: 112.00 | F135: 1.00
A136: 133 | B136: 小松镇罗溪村 | C136: 罗溪村放牛排小组 | D136: 温院生 | E136: 481.60 | F136: 4.30
A137: 134 | B137: 小松镇罗溪村 | C137: 罗溪村放牛排小组 | D137: 温大周 | E137: 324.80 | F137: 2.90
A138: 135 | B138: 小松镇罗溪村 | C138: 罗溪村放牛排小组 | D138: 温梦祥 | E138: 560.00 | F138: 5.00
A139: 136 | B139: 小松镇罗溪村 | C139: 罗溪村放牛排小组 | D139: 温香秀 | E139: 219.52 | F139: 1.96
A140: 137 | B140: 小松镇罗溪村 | C140: 罗溪村放牛排小组 | D140: 温荣生 | E140: =F140*112 -> 318.08 | F140: 2.84
A141: 138 | B141: 小松镇罗溪村 | C141: 罗溪村放牛排小组 | D141: 温细周 | E141: 374.08 | F141: 3.34
A142: 139 | B142: 小松镇罗溪村 | C142: 罗溪村放牛排小组 | D142: 温六生 | E142: 268.80 | F142: 2.40
A143: 140 | B143: 小松镇罗溪村 | C143: 罗溪村放牛排小组 | D143: 温兰生 | E143: 268.80 | F143: 2.40
A144: 141 | B144: 小松镇罗溪村 | C144: 罗溪村放牛排小组 | D144: 温先福 | E144: 268.80 | F144: 2.40
A145: 142 | B145: 小松镇罗溪村 | C145: 罗溪村放牛排小组 | D145: 温荣平 | E145: 268.80 | F145: 2.40
A146: 143 | B146: 小松镇罗溪村 | C146: 罗溪村放牛排小组 | D146: 温科生 | E146: 268.80 | F146: 2.40
A147: 144 | B147: 小松镇罗溪村 | C147: 罗溪村放牛排小组 | D147: 温先麟 | E147: 318.08 | F147: 2.84
A148: 145 | B148: 小松镇罗溪村 | C148: 罗溪村放牛排小组 | D148: 温小勇 | E148: 219.52 | F148: 1.96
A149: 146 | B149: 小松镇罗溪村 | C149: 罗溪村放牛排小组 | D149: 温光松 | E149: 549.92 | F149: 4.91
A150: 147 | B150: 小松镇罗溪村 | C150: 罗溪村放牛排小组 | D150: 温林生 | E150: 585.76 | F150: 5.23
A151: 148 | B151: 小松镇罗溪村 | C151: 罗溪村放牛排小组 | D151: 温广东 | E151: 437.92 | F151: 3.91
A152: 149 | B152: 小松镇罗溪村 | C152: 罗溪村放牛排小组 | D152: 温小飞 | E152: 437.92 | F152: 3.91
A153: 150 | B153: 小松镇罗溪村 | C153: 罗溪村外朝龙小组 | D153: 温友朋 | E153: 147.84 | F153: 1.32
A154: 151 | B154: 小松镇罗溪村 | C154: 罗溪村外朝龙小组 | D154: 温志生 | E154: 327.04 | F154: 2.92
A155: 152 | B155: 小松镇罗溪村 | C155: 罗溪村外朝龙小组 | D155: 温继明 | E155: 147.84 | F155: 1.32
A156: 153 | B156: 小松镇罗溪村 | C156: 罗溪村外朝龙小组 | D156: 温荣生 | E156: 336.00 | F156: 3.00
A157: 154 | B157: 小松镇罗溪村 | C157: 罗溪村外朝龙小组 | D157: 李珍秀 | E157: 246.40 | F157: 2.20
A158: 155 | B158: 小松镇罗溪村 | C158: 罗溪村外朝龙小组 | D158: 温大红 | E158: 347.20 | F158: 3.10
A159: 156 | B159: 小松镇罗溪村 | C159: 罗溪村外朝龙小组 | D159: 温志伟 | E159: 147.84 | F159: 1.32
A160: 157 | B160: 小松镇罗溪村 | C160: 罗溪村外朝龙小组 | D160: 温志森 | E160: 616.00 | F160: 5.50
A161: 158 | B161: 小松镇罗溪村 | C161: 罗溪村外朝龙小组 | D161: 温琴秀 | E161: 147.84 | F161: 1.32
A162: 159 | B162: 小松镇罗溪村 | C162: 罗溪村沙坵小组 | D162: 肖运松 | E162: 369.60 | F162: 3.30
A163: 160 | B163: 小松镇罗溪村 | C163: 罗溪村沙坵小组 | D163: 肖运柏 | E163: 403.20 | F163: 3.60
A164: 161 | B164: 小松镇罗溪村 | C164: 罗溪村沙坵小组 | D164: 曾腊秀 | E164: 548.80 | F164: 4.90
A165: 162 | B165: 小松镇罗溪村 | C165: 罗溪村沙坵小组 | D165: 温马头 | E165: 253.12 | F165: 2.26
A166: 163 | B166: 小松镇罗溪村 | C166: 罗溪村沙坵小组 | D166: 温荣芳 | E166: 320.32 | F166: 2.86
A167: 164 | B167: 小松镇罗溪村 | C167: 罗溪村沙坵小组 | D167: 温宗亮 | E167: 548.80 | F167: 4.90
A168: 165 | B168: 小松镇罗溪村 | C168: 罗溪村沙坵小组 | D168: 温志发 | E168: 246.40 | F168: 2.20
A169: 166 | B169: 小松镇罗溪村 | C169: 罗溪村沙坵小组 | D169: 肖满秀 | E169: 692.16 | F169: 6.18
A170: 167 | B170: 小松镇罗溪村 | C170: 罗溪村沙坵小组 | D170: 温金水 | E170: 403.20 | F170: 3.60
A171: 168 | B171: 小松镇罗溪村 | C171: 罗溪村里朝龙小组 | D171: 陈礼生 | E171: 423.36 | F171: 3.78
A172: 169 | B172: 小松镇罗溪村 | C172: 罗溪村里朝龙小组 | D172: 李贤运 | E172: 692.16 | F172: 6.18
A173: 170 | B173: 小松镇罗溪村 | C173: 罗溪村里朝龙小组 | D173: 温金生 | E173: 742.56 | F173: 6.63
A174: 171 | B174: 小松镇罗溪村 | C174: 罗溪村里朝龙小组 | D174: 陈昌水 | E174: 901.60 | F174: 8.05
A175: 172 | B175: 小松镇罗溪村 | C175: 罗溪村里朝龙小组 | D175: 陈龙生 | E175: 365.12 | F175: 3.26
A176: 173 | B176: 小松镇罗溪村 | C176: 罗溪村里朝龙小组 | D176: 邓增彬 | E176: 729.12 | F176: 6.51
A177: 174 | B177: 小松镇罗溪村 | C177: 罗溪村里朝龙小组 | D177: 陈昌文 | E177: 514.08 | F177: 4.59
A178: 175 | B178: 小松镇罗溪村 | C178: 罗溪村茶头下小组 | D178: 温宝明 | E178: 182.56 | F178: 1.63
A179: 176 | B179: 小松镇罗溪村 | C179: 罗溪村茶头下小组 | D179: 温北方 | E179: 549.92 | F179: 4.91
A180: 177 | B180: 小松镇罗溪村 | C180: 罗溪村茶头下小组 | D180: 温雪平 | E180: 728.00 | F180: 6.50
A181: 178 | B181: 小松镇罗溪村 | C181: 罗溪村茶头下小组 | D181: 温东北 | E181: 546.56 | F181: 4.88
A182: 179 | B182: 小松镇罗溪村 | C182: 罗溪村茶头下小组 | D182: 温东生 | E182: 546.56 | F182: 4.88
A183: 180 | B183: 小松镇罗溪村 | C183: 罗溪村茶头下小组 | D183: 温雪珍 | E183: 273.28 | F183: 2.44
A184: 181 | B184: 小松镇罗溪村 | C184: 罗溪村茶头下小组 | D184: 温南昌 | E184: 182.56 | F184: 1.63
A185: 182 | B185: 小松镇罗溪村 | C185: 罗溪村茶头下小组 | D185: 温北珍 | E185: 182.56 | F185: 1.63
A186: 183 | B186: 小松镇罗溪村 | C186: 罗溪村茶头下小组 | D186: 温心甫 | E186: 546.56 | F186: 4.88
A187: 184 | B187: 小松镇罗溪村 | C187: 罗溪村高岭小组 | D187: 温大桂 | E187: 488.32 | F187: 4.36
A188: 185 | B188: 小松镇罗溪村 | C188: 罗溪村高岭小组 | D188: 李岩秀 | E188: 389.76 | F188: 3.48
A189: 186 | B189: 小松镇罗溪村 | C189: 罗溪村高岭小组 | D189: 温春云 | E189: 268.80 | F189: 2.40
A190: 187 | B190: 小松镇罗溪村 | C190: 罗溪村高岭小组 | D190: 温大宽 | E190: 280.00 | F190: 2.50
A191: 188 | B191: 小松镇罗溪村 | C191: 罗溪村高岭小组 | D191: 温兵娥 | E191: 134.40 | F191: 1.20
A192: 189 | B192: 小松镇罗溪村 | C192: 罗溪村里头屋小组 | D192: 温玉清 | E192: 403.20 | F192: 3.60
A193: 190 | B193: 小松镇罗溪村 | C193: 罗溪村里头屋小组 | D193: 温光洪 | E193: 403.20 | F193: 3.60
A194: 191 | B194: 小松镇罗溪村 | C194: 罗溪村里头屋小组 | D194: 温莲生 | E194: 403.20 | F194: 3.60
A195: 192 | B195: 小松镇罗溪村 | C195: 罗溪村里头屋小组 | D195: 温吉荣 | E195: 470.40 | F195: 4.20
A196: 193 | B196: 小松镇罗溪村 | C196: 罗溪村里头屋小组 | D196: 温荣鹏 | E196: 593.60 | F196: 5.30
A197: 194 | B197: 小松镇罗溪村 | C197: 罗溪村里头屋小组 | D197: 胡香兰 | E197: 313.60 | F197: 2.80
A198: 195 | B198: 小松镇罗溪村 | C198: 罗溪村里头屋小组 | D198: 温树根 | E198: 403.20 | F198: 3.60
A199: 196 | B199: 小松镇罗溪村 | C199: 罗溪村里头屋小组 | D199: 温建昌 | E199: 403.20 | F199: 3.60
A200: 197 | B200: 小松镇罗溪村 | C200: 罗溪村里头屋小组 | D200: 温平秀 | E200: 627.20 | F200: 5.60
... 3755 more rows

Sheet 附件5-村集体
A1: 石城县财政惠农补贴（耕地地力保护补贴）社会保障“一卡通”发放清册
A2: 单位名称（公章）： 制表时间： 单位：元
A3: 序号 | B3: 行政区划名称 | C3: 村组 | D3: 账户人姓名 | E3: 补助金额 | F3: 补助面积 | G3: 备注
A4: 1 | B4: 小松镇 | C4: 新华村茶壶坳组 | D4: 石城县小松镇新华村集体股份经济合作社 | E4: =F4*112 -> 1680.00 | F4: 15.00
A5: 2 | B5: 小松镇 | C5: 瑶上村新、老屋 | D5: 石城县小松镇瑶上村集体股份经济合作社 | E5: 10304.00 | F5: 92.00
A6: 3 | B6: 小松镇 | C6: 桐江村 | D6: 石城县小松镇桐江村集体股份经济合作社 | E6: 3920.00 | F6: 35.00
A7: 4 | B7: 小松镇 | C7: 罗溪村 | D7: 石城县小松镇罗溪村集体股份经济合作社 | E7: =112*325 -> 36400.00 | F7: 325.00
A8: 5 | B8: 小松镇 | C8: 石田村新街组 | D8: 石城县小松镇石田村集体股份经济合作社 | E8: =F8*112 -> 2240.00 | F8: 20.00
D9: 合计 | E9: =SUM(E4:E8) -> 54544 | F9: =SUM(F4:F8) -> 487
C10: 审核： | E10: 制表：
